Workbook

Sheet FrontCover
A2: PLEASE REPLACE THIS PAGE WITH THE STANDARD MI COVER
A16: Management Information
A18: National Stop and Search
A19: Database: Quarterly Report
A22: OFFICIAL
A23: THIS DATA IS POLICE SCOTLAND MANAGEMENT INFORMATION,
A24: NOT OFFICIAL STATISTICS
A26: APRIL - SEPTEMBER 2024/25
A35: Produced by Police Scotland Analysis and Performance Unit
A36: 2024-10-02

Sheet Contents
A1: Contents
A3: The Code of Practice | B3: 2
A4: Commentary Notes | B4: 3
A5: Definition of a Stop and Search | B5: 4
A6: Stop and Searches, Legislation | B6: 5
A8: Stop and Searches
A9: Stop and Searches by Local Authority | B9: 6
A10: Stop and Searches by Legislation | B10: 7
A11: Search Outcomes | B11: 8
A12: Stop and Search Receipts | B12: 9
A14: Items Found During a Search
A15: Main Item Found Classification by Search Reason | B15: 10
A16: Drugs Found by Local Authority | B16: 11
A17: Weapons Found by Local Authority | B17: 12
A18: Other Items Found by Local Authority | B18: 13
A20: Demographic of Nominals Searched
A21: Searches by Ethnicity/National Origin | B21: 14
A22: Searches by Age and Gender | B22: 15
A24: Public Order Search Powers
A25: Use of Powers under Section 60 Criminal Justice and Public Order Act 1994 | B25: 16
F50: Produced by Police Scotland Analysis and Performance Unit
D51: =TODAY() -> 2024-12-17

Sheet The CoP
A1: The Code of Practice on the Exercise by Constables of Powers of Stop
A2: and Search of the Person in Scotland
A4: The Code came into effect on 11 May 2017. The Code governs all situations in which constables stop and search
A5: a person without first making an arrest, unless the search is expressly excluded, either under the Code, by
A6: statute, or by virtue of the search being subject to a separate statutory Code or guidance as to its exercise. The
A7: Code also sets out the requirements to be followed by the Police for recording information in relation to all stop
A8: and search activity covered by the Code.
A10: The Code requires as soon as practicable after the end of each reporting year (ending 31 March), the Chief
A11: Constable of a relevant police service must publish, information on how many times during the reporting year a
A12: stop and search was carried out in Scotland by constables of that service. In addition, so far as practicable, the
A13: information is to disclose:
A15: (a) the number of stops and searches carried out under each statutory power;
A16: (b) how many persons were searched on two or more occasions
A17: (c) the age and gender, and the ethnic and national origin, of the persons searched
A18: (d) the proportion of searches that resulted in:
A19: (i) something being recovered by a constable, including information as to the number of cases in which the item
A20: recovered was of the type suspected by the constable at the outset of the search
A21: (ii) a case being reported to the Procurator Fiscal
A22: (e) the number of authorisations issued under section 60 of the Criminal Justice and Public Order Act 1994
A23: (f) the number of complaints made to a relevant police service about the carrying out of searches
A24: (or the manner in which they were carried out) in Scotland by constables of that service.
A25: (g) the number of receipts issued
A27: The National Stop and Search Database was upgraded to coincide with the introduction of the Code.
A28: These changes included:
A29: (a) Cessation of the recording of consensual search
A30: (b) A new category to include searches of a person carried out in accordance with a search warrant issued by a court in Scotland
A31: (c) Addition of a new power under Section 66 of the Criminal Justice (Scotland) Act 2016, removal of a person
A32: (d) A new search type ‘Protection of Life’ recorded for when an officer conducts a search (in accordance with section 3.4 of
A33: the Code), under the overarching principles of Section 20 or 32 of the Police and Fire Reform (Scotland) Act 2012, as part of
A34: taking all steps necessary to protect life
A35: (e) A new search type ‘Other’ recorded for when an officer believes it is necessary to conduct a search that is not
A36: for the protection of life and where no specific statutory power exists and considers their actions to be justified,
A37: the officer should enter Police and Fire Reform (Scotland) Act as the ‘Power of Search used’
A38: (f) Officer’s estimate of the age group of the person searched (under the age of 18 or 18 years of age and over) if not provided
A40: The Code is available at police stations and on the stop and search page of the Police Scotland website (www.scotland.police.uk).
A41: The Code is available at police stations and on the stop and search page of the Police Scotland website:
A42: Police Scotland Website

Sheet Commentary page
A1: Commentary Notes on Management Information
A3: Force Level Highlights
A4: 1. All statistics are provisional and should be treated as management information. All data have been extracted
A5: from Police Scotland internal systems and are correct as of 9th October 2024.
A7: 2. This report shows the data of the enhanced database 1st April 2024 – 30th September 2024.
A9: 3. This data shows that Police Scotland is delivering the improvements set out in the Stop and Search
A10: Improvement Plan and is committed to sustaining and building on those improvements and maintaining
A11: community confidence.
A13: 4. An enhanced database was rolled out across Scotland on 1st June 2015 which included additional validations
A14: designed to improve the quality of the data by preventing inaccurate data capture through input error. Further
A15: enhancements have followed, significantly allowing more detail to be recorded since the introduction of the Code
A16: of Practice. Following the review of the data captured on the National Stop and Search Database for the period
A17: specified, it is evident that the introduction of these validation checks has made a significant impact on the level
A18: of data input errors.
A20: 5. In relation to outcomes the National Stop Search Unit (NSSU) do not validate or compare search outcomes
A21: from the National Stop Search Database with other Police systems.
A23: Ongoing Quality Assurance
A24: As part of Police Scotland's duty under data protection and our quality assurance process, records held on the
A25: database may be reviewed and may be subject to amendment. This involves liaising with the officer(s) involved
A26: to confirm any aspect of the recorded data which is unclear. Any adjustment in respect of these records will be
A27: reflected in future stop and search publications.
A30: Complaints
A31: For the period 1st April 2024 - 30th September 2024 a total of 45 complaints have been received by Police Scotland
A32: in relation to the use of stop and search.
A34: Persons Searched on Two or More Occasions
A35: Between 1st April 2024 - 30th September, 2092 persons have been searched on two or more occasions.
A36: As the National Stop and Search Database is not nominal-centric this figure can be affected by a number of
A37: variables such as persons providing alias names or variations in spellings.
A39: Comparisons with Historical Data
A40: Due to changes in data recording to bring the National Stop and Search Database in line with the Code of Practice,
A41: direct comparisons with historical data would provide invalid or misleading conclusions.

Sheet Definitions
A1: Definition of a Stop and Search
A5: Stop and Search
A6: A stop and search is one conducted by a police officer in the course of their duties where a person who is not in police
A7: custody is searched using a specific statutory provision or in accordance with a search warrant issued by a court in
A8: Scotland.
A10: Positive Stop and Search
A11: A positive stop and search is when an item is recovered where possession of same implies criminality on the part
A12: of the person being searched or any other or where an item has been recovered which is potentially harmful.
A14: N.B. When a stop and search under a statutory provision has taken place and alcohol, tobacco or NPS is recovered,
A15: depending on the circumstances this should be recorded as a positive stop and search on the Stop and Search Database.
A17: Recordable Stop and Search (must be recorded on the National Stop and Search Database)
A18: A recordable stop and search is any stop and search, with the exception of condition of entry searches (Section 67 Criminal
A19: Justice (Scotland) Act 2016) or Schedule 7 of the Terrorism Act 2000 (which is governed by different Codes of Practice).

Sheet Legal Definitions
A1: Stop and Searches, Legislation
A5: The following table identifies the type of searches recorded on the National Stop and Search Database, along with the specific legislation relative to each search type:
A7: Search Type | B7: Recordable Statute
A9: Search Warrants | B9: S109(1) Copyright, Designs and Patents Act 1988 (Piracy and trademark offences etc)
A10: Search Warrants | B10: S142(1) Criminal Justice Act, 1988 (Search of premises for offensive weapons)
A11: Search Warrants | B11: S23(3) Misuse Of Drugs Act 1971
A12: Search Warrants | B12: S24(1) Forgery and Counterfeiting Act, 1981 (Search for counterfeit money)
A13: Search Warrants | B13: S27 Deer (Scotland) Act 1996
A14: Search Warrants | B14: S28B(4) Immigration Act 1971
A15: Search Warrants | B15: S292(3) Mental Health Care and Treatment Scotland Act 2003
A16: Search Warrants | B16: S42(1) Terrorism Act 2000
A17: Search Warrants | B17: S46(1) Firearms Act 1968
A18: Search Warrants | B18: Other Legislation
A19: Drugs | B19: S23(2) Misuse of Drugs Act 1971 (Controlled Drugs)
A20: Drugs | B20: S23A Misuse of Drugs Act 1971 (Temp Class Drugs)
A21: Care and Welfare | B21: S66 Criminal Justice (Scot) Act 2016
A22: NPS | B22: S36 Psychoactive Substances Act 2016 (Supply etc.)
A23: Stolen Property | B23: S60 Civic Government (Scot) Act 1982
A24: Weapons | B24: S48(1) Criminal Law (Cons) (Scot) Act 1995 (Offensive weapons)
A25: Weapons | B25: S49(B) Criminal Law (Cons) (Scot) Act 1995 (Offensive weapons in Schools)
A26: Weapons | B26: S50 Criminal Law (Cons) (Scot) Act 1995 (Bladed or Pointed Articles)
A27: Weapons | B27: S11 Offensive Weapons Act 2019 (Corrosive Substances)
A28: Firearms | B28: S47(1) Firearms Act 1968
A29: Firearms | B29: S4 Crossbows Act 1987
A30: Fireworks | B30: S11A Fireworks Act 2003
A31: Fireworks | B31: S41 Fireworks and Pyrotechnic Articles (Scotland) Act 2022
A32: Protection of Life | B32: S20/32 Police & Fire Reform (Scot) Act 2012
A33: Aviation | B33: S24B Aviation Security Act 1982 (Stolen or prohibited items in Aerodromes)
A34: Aviation | B34: Edinburgh Airport Byelaws 2015 (Search in interest of public safety)
A35: Aviation | B35: Schedule 8(2) Air Traffic Management and Unmanned Aircraft Act 2021
A36: Wildlife | B36: S19 Wildlife & Countryside Act 1981
A37: Wildlife | B37: S11 Protection of Badgers Act 1992
A38: Wildlife | B38: S101 Conservation (Natural Habitats etc.) Regulations 1994
A39: Wildlife | B39: S27 Deer (Scot) Act 1996
A40: Wildlife | B40: S4 Wild Mammals (Protection) Act 1996
A41: Wildlife | B41: S7 Wild Mammals (Scot) Act 2002
A42: Wildlife | B42: S53(1) Salmon & Freshwater Fisheries (Cons) (Scot) Act 2003
A43: Terrorism | B43: S43 Terrorism Act 2000 (Suspect terrorist)
A44: Terrorism | B44: S47A Terrorism Act 2000 (Authority of Assistant Chief Constable or above)
A45: Sporting Events | B45: S21 Criminal Law (Cons) (Scot) Act 1995 (Controlled items) - Alcohol
A46: Sporting Events | B46: S21 Criminal Law (Cons) (Scot) Act 1995 (Controlled items) - Controlled Containers
A47: Sporting Events | B47: S21 Criminal Law (Cons) (Scot) Act 1995 (Controlled items) - Controlled Article or Substance
A48: Public Order | B48: S60 Criminal Justice & Public Order Act 1994 (Authority of inspector or above)
A49: Proceeds of Crime | B49: S289 Proceeds of Crime Act 2002 (Prior approval - cash)
A50: Proceeds of Crime | B50: S303C Proceeds of Crime Act 2002 (Prior approval - listed assets)
A51: Other | B51: S20/32 Police & Fire Reform (Scot) Act 2012

Sheet Number of Searches
A1: Table 1.1
A2: Stop and Searches by Local Authority - Police Scotland
A3: =CONCATENATE("Period: ",L7) -> Period: April to September 2024
B5: Local Authority | C5: Number of Searches | D5: Positive Searches | E5: Positive Rate (%)
A7: North | L7: April to September 2024
B8: Highland | C8: 519 | D8: 229 | E8: =D8/C8*100 -> 44.12331407
B9: Orkney Islands | C9: 48 | D9: 16 | E9: =D9/C9*100 -> 33.33333333
B10: Shetland Islands | C10: 69 | D10: 23 | E10: 33.33333333
B11: Eilean Siar | C11: 32 | D11: 14 | E11: 43.75
B12: Aberdeen City | C12: 394 | D12: 146 | E12: 37.05583756
B13: Aberdeenshire | C13: 513 | D13: 178 | E13: 34.69785575
B14: Moray | C14: 129 | D14: 39 | E14: 30.23255814
B15: Perth and Kinross | C15: 78 | D15: 35 | E15: 44.87179487
B16: Dundee | C16: 192 | D16: 89 | E16: 46.35416667
B17: Angus | C17: 87 | D17: 39 | E17: 44.82758621
A19: East
B20: Fife | C20: 194 | D20: 80 | E20: 41.2371134
B21: East Lothian | C21: 94 | D21: 36 | E21: 38.29787234
B22: Edinburgh City | C22: 746 | D22: 249 | E22: 33.37801609
B23: Midlothian | C23: 94 | D23: 30 | E23: 31.91489362
B24: Scottish Borders | C24: 80 | D24: 29 | E24: 36.25
B25: West Lothian | C25: 127 | D25: 50 | E25: 39.37007874
B26: Clackmannanshire | C26: 70 | D26: 16 | E26: 22.85714286
B27: Falkirk | C27: 245 | D27: 75 | E27: 30.6122449
B28: Stirling | C28: 158 | D28: 46 | E28: 29.11392405
A30: West
B31: Argyll & Bute | C31: 425 | D31: 124 | E31: 29.17647059
B32: East Ayrshire | C32: 832 | D32: 243 | E32: 29.20673077
B33: East Dunbartonshire | C33: 161 | D33: 43 | E33: 26.70807453
B34: East Renfrewshire | C34: 227 | D34: 65 | E34: 28.63436123
B35: Glasgow City | C35: 4948 | D35: 1058 | E35: 21.38237672
B36: Inverclyde | C36: 499 | D36: 97 | E36: 19.43887776
B37: North Ayrshire | C37: 610 | D37: 165 | E37: 27.04918033
B38: North Lanarkshire | C38: 3307 | D38: 627 | E38: 18.95978228
B39: Renfrewshire | C39: 413 | D39: 126 | E39: 30.50847458
B40: South Ayrshire | C40: 765 | D40: 142 | E40: 18.5620915
B41: South Lanarkshire | C41: 2120 | D41: 428 | E41: 20.18867925
B42: West Dunbartonshire | C42: 439 | D42: 133 | E42: 30.29612756
B43: Dumfries and Galloway | C43: 383 | D43: 113 | E43: 29.50391645
A45: Force | C45: =SUM(C7:C44) -> 18998 | D45: =SUM(D7:D44) -> 4783 | E45: 25.17633435

Sheet Search Reason
A1: Table 1.2
A2: Stop and Search by Legislation - Police Scotland
A3: ='Number of Searches'!$A$3 -> Period: April to September 2024
A5: Legislation | B5: Number of Searches | C5: Positive Searches | D5: Positive Rate (%)
A7: Drugs | B7: =SUM(B8:B9) -> 13152 | C7: =SUM(C8:C9) -> 3552 | D7: =C7/B7*100 -> 27.00729927
A8: S23(2) Misuse of Drugs Act 1971 (Controlled Drugs) | B8: 13110 | C8: 3546 | D8: =C8/B8*100 -> 27.04805492
A9: S23A Misuse of Drugs Act 1971 (Temp Class Drugs) | B9: 42 | C9: 6 | D9: =IFERROR(C9/B9*100,"-") -> 14.28571429
A11: NPS | B11: =B12 -> - | C11: =C12 -> - | D11: =IFERROR(C11/B11*100,"-") -> -
A12: S36 Psychoactive Substances Act 2016 (Supply etc.) | B12: - | C12: - | D12: =IFERROR(C12/B12*100,"-") -> -
A14: Weapons | B14: =SUM(B15:B18) -> 1673 | C14: =SUM(C15:C18) -> 304 | D14: =C14/B14*100 -> 18.17095039
A15: S48(1) Criminal Law (Cons) (Scot) Act 1995 (Offensive weapons) | B15: 655 | C15: 109 | D15: 16.64122137
A16: S49(B) Criminal Law (Cons) (Scot) Act 1995 (Offensive weapons in Schools) | B16: 23 | C16: 5 | D16: 21.73913043
A17: S50 Criminal Law (Cons) (Scot) Act 1995 (Bladed or Pointed Articles) | B17: 995 | C17: 190 | D17: 19.09547739
A18: S11 Offensive Weapons Act 2019 (Corrosive Substances) | B18: - | C18: - | D18: =IFERROR(C18/B18*100,"-") -> -
A19: Stolen Property | B19: =B20 -> 1007 | C19: =C20 -> 489 | D19: 48.56007944
A20: S60 Civic Government (Scot) Act 1982 | B20: 1007 | C20: 489 | D20: 48.56007944
A22: Sporting Events | B22: =B23 -> 7 | C22: =C23 -> 6 | D22: =IFERROR(C22/B22*100,"-") -> 85.71428571
A23: S21 Criminal Law (Cons) (Scot) Act 1995 (Controlled items) | B23: 7 | C23: 6 | D23: =IFERROR(C23/B23*100,"-") -> 85.71428571
A25: Firearms | B25: =SUM(B26:B27) -> 38 | C25: =SUM(C26:C27) -> 10 | D25: 26.31578947
A26: S47(1) Firearms Act 1968 | B26: 37 | C26: 9 | D26: 24.32432432
A27: S4 Crossbows Act 1987 | B27: 1 | C27: 1 | D27: =IFERROR(C27/B27*100,"-") -> 100
A29: Fireworks | B29: =SUM(B30:B31) -> 24 | C29: =SUM(C30:C31) -> 6 | D29: =IFERROR(C29/B29*100,"-") -> 25
A30: S11A Fireworks Act 2003 | B30: 6 | C30: 2 | D30: =IFERROR(C30/B30*100,"-") -> 33.33333333
A31: S41 Fireworks and Pyrotechnic Articles (Scotland) Act 2022 | B31: 18 | C31: 4 | D31: =IFERROR(C31/B31*100,"-") -> 22.22222222
A32: Terrorism | B32: =B33 -> - | C32: =C33 -> - | D32: -
A33: S43 Terrorism Act 2000 | B33: - | C33: - | D33: -
A35: Public Order | B35: =B36 -> - | C35: =C36 -> - | D35: =IFERROR(C35/B35*100,"-") -> -
A36: S60 Criminal Justice & Public Order Act 1994 (Authority of inspector or above) | B36: - | C36: - | D36: =IFERROR(C36/B36*100,"-") -> -
D37: =IFERROR(C37/B37*100,"-") -> -
A38: Wildlife | B38: =IF(SUM(B39:B45)=0,"-",SUM(B39:B45)) -> 9 | C38: =IF(SUM(C39:C45)=0,"0",SUM(C39:C45)) -> 1 | D38: 11.11111111
A39: S19 Wildlife & Countryside Act 1981 | B39: 1 | C39: 0 | D39: 0
A40: S11 Protection of Badgers Act 1992 | B40: - | C40: - | D40: -
A41: S101 Conservation (Natural Habitats etc.) Regulations 1994 | B41: - | C41: - | D41: -
A42: S27 Deer (Scot) Act 1996 | B42: - | C42: - | D42: -
A43: S4 Wild Mammals (Protection) Act 1996 | B43: - | C43: - | D43: -
A44: S7 Wild Mammals (Scot) Act 2002 | B44: - | C44: - | D44: -
A45: S53(1) Salmon & Freshwater Fisheries (Cons) (Scot) Act 2003 | B45: 8 | C45: 1 | D45: 12.5
D46: -
A47: Aviation | B47: =IF(SUM(B48:B50)=0,"-",SUM(B48:B50)) -> 3 | C47: =IF(B47="-","-",SUM(C48:C50)) -> 0 | D47: 0
A48: S24B Aviation Security Act 1982 (Stolen or prohibited items in Aerodromes) | B48: - | C48: - | D48: -
A49: Edinburgh Airport Byelaws 2015 (Search in interest of public safety) | B49: 3 | C49: 0 | D49: 0
A50: Schedule 8(2) Air Traffic Management and Unmanned Aircraft Act 2021 | B50: - | C50: - | D50: -
D51: -
A52: Search Warrants | B52: =SUM(B53:B62) -> 735 | C52: =SUM(C53:C62) -> 282 | D52: 38.36734694
A53: S109(1) Copyright, Designs and Patents Act 1988 (Piracy and trademark offences etc) | B53: - | C53: - | D53: -
A54: S142(1) Criminal Justice Act, 1988 (Search of premises for offensive weapons) | B54: - | C54: - | D54: -
A55: S23(3) Misuse Of Drugs Act 1971 | B55: 683 | C55: 261 | D55: 38.21376281
A56: S24(1) Forgery and Counterfeiting Act, 1981 (Search for counterfeit money) | B56: - | C56: - | D56: -
A57: S27 Deer (Scotland) Act 1996 | B57: - | C57: - | D57: -
A58: S28B(4) Immigration Act 1971 | B58: - | C58: - | D58: -
A59: S292(3) Mental Health Care and Treatment Scotland Act 2003 | B59: - | C59: - | D59: -
A60: S42(1) Terrorism Act 2000 | B60: - | C60: - | D60: -
A61: S46(1) Firearms Act 1968 | B61: 4 | C61: 1 | D61: 25
A62: Other Legislation | B62: 48 | C62: 20 | D62: 41.66666667
D63: -
A64: Proceeds of Crime | B64: =B65 -> - | C64: =C65 -> - | D64: -
A65: S289 Proceeds of Crime Act 2002 (Prior approval required - cash) | B65: - | C65: - | D65: -
A66: S303C Proceeds of Crime Act 2002 (Prior approval required - listed assets) | B66: - | C66: - | D66: -
D67: -
A68: Care and Welfare | B68: =B69 -> 2157 | C68: =C69 -> 106 | D68: 4.914232731
A69: S66 Criminal Justice (Scot) Act 2016 | B69: 2157 | C69: 106 | D69: 4.914232731
D70: -
A71: Protection of Life | B71: =B72 -> 160 | C71: =C72 -> 16 | D71: 10
A72: S20/32 Police & Fire Reform (Scot) Act 2012 | B72: 160 | C72: 16 | D72: 10
A74: Other | B74: =IF(SUM(B75)=0,"-",SUM(B75)) -> 33 | C74: =(SUM(C75)) -> 11 | D74: 33.33333333
A75: S20/32 Police & Fire Reform (Scot) Act 2012 | B75: 33 | C75: 11 | D75: 33.33333333
A77: Total Searches | B77: =SUM(B74,B71,B68,B52,B64,B47,B38,B35,B32,B29,B25,B22,B19,B14,B11,B7) -> 18998 | C77: =SUM(C74,C71,C68,C52,C64,C47,C38,C35,C32,C29,C25,C22,C19,C14,C11,C7) -> 4783 | D77: 25.17633435
A79: Public Order
A80: Searches Conducted | B80: -
A81: Positive Searches | B81: -
A82: Positive Rate (%) | B82: =IF(B81="-","-",B81/B80*100) -> -
A85: 1 - The search type ‘Other’ refers to when an officer believes it is necessary to conduct a search that is not for the
A86: protection of life and where no specific statutory power exists and considers their actions to be justified.
A87: 2 - Positive rates for searches under the Terrorism Act 2000 are not published for operational and security
A88: reasons. Statistical information about the operation of police powers under the Terrorism Act 2000 is available at
A89: Operation of Police Powers Under the Terrorism Act 2000

Sheet Overall search outcomes
A1: Table 1.3
A2: Search Outcomes - Police Scotland
A3: ='Number of Searches'!$A$3 -> Period: April to September 2024
A5: Disposal | B5: Number of Searches | C5: % Of Total Searches
A7: Fixed Penalty Notice | B7: 69 | C7: =B7/'Number of Searches'!C45*100 -> 0.3631961259
A8: SPR2 | B8: 2921 | C8: =B8/'Number of Searches'!C45*100 -> 15.37530266
A9: No Further Action | B9: 11088 | C9: =B9/'Number of Searches'!C45*100 -> 58.36403832
A10: IVPD | B10: 883 | C10: =B10/'Number of Searches'!C45*100 -> 4.647857669
A11: SID Log | B11: 4114 | C11: =B11/'Number of Searches'!C45*100 -> 21.65491104
A12: Recorded Police Warning | B12: 1984 | C12: =IF(B12="-","-",B12/'Number of Searches'!C45*100) -> 10.44320455
A15: Key: SPR2 – Standard Prosecution Reports
A16: IVPD – Interim Vulnerable Persons Database
A17: SID - Scottish Intelligence Database
A18: 3 - Any anomilies in percentage changes are due to rounding up to the nearest decimal place.
A19: 4 - Some searches are recorded with more than one disposal so totals will not equal the actual number of stop and searches.
A20: 5 - A search can have more than one disposal from the list and provides the outcome and/or further action taken by officers.
A21: 6 - The NSSU do not currently validate disposals on the National Stop and Search Database against
A22: other recording systems. This information is captured for internal management purposes only.
A23: 7 - SPR2 is a new category of disposal introduced on the 11 May 2017 to meet reporting requirements of the Code of Practice.

Sheet Receipts
A1: Table 1.4
A2: Stop and Search Receipts - Police Scotland
A3: ='Number of Searches'!$A$3 -> Period: April to September 2024
C5: Number of Searches | D5: Receipts Issued | E5: Issue Rate (%)
A8: Force | C8: 18998 | D8: 12425 | E8: =D8/C8*100 -> 65.40162122
A11: 8 - Officers may not issue a receipt if the person searched refuses to accept it or if the officer is called
A12: to an urgent incident. In all cases the record will be subject to a review to ensure compliance with the
A13: Code of Practice.

Sheet Search Different to Outcome
A1: Table 2.1
A2: Main Item Found Classification by Search Reason - Police Scotland
A3: ='Number of Searches'!A3 -> Period: April to September 2024
H5: Main Item Found Classification
A6: Reason for Search | B6: Total Positive Searches | C6: Drugs | D6: NPS | E6: Stolen Property | F6: Weapons | G6: Firearms | H6: Fireworks | I6: Controlled Container | J6: Controlled Article | K6: Alcohol | L6: Tobacco and Cigarette Papers | M6: Money | N6: Other | O6: Aviation
A8: Drugs | B8: ='Search Reason'!C7 -> 3552 | C8: 3337 | D8: 10 | E8: 21 | F8: 160 | G8: 1 | H8: 1 | I8: 5 | J8: - | K8: 65 | L8: 45 | M8: 35 | N8: 40 | O8: -
A9: New Psychoactive Substances | B9: ='Search Reason'!C11 -> - | C9: - | D9: - | E9: - | F9: - | G9: - | H9: - | I9: - | J9: - | K9: - | L9: - | M9: - | N9: - | O9: -
A10: Stolen Property | B10: ='Search Reason'!C19 -> 489 | C10: 41 | D10: 1 | E10: 386 | F10: 31 | G10: 1 | H10: - | I10: - | J10: - | K10: 58 | L10: 4 | M10: 4 | N10: 24 | O10: -
A11: Weapons | B11: ='Search Reason'!C14 -> 304 | C11: 63 | D11: 1 | E11: 5 | F11: 233 | G11: 2 | H11: - | I11: - | J11: - | K11: 12 | L11: 3 | M11: - | N11: 6 | O11: -
A12: Firearms | B12: ='Search Reason'!C25 -> 10 | C12: 1 | D12: - | E12: - | F12: 3 | G12: 8 | H12: - | I12: - | J12: - | K12: - | L12: - | M12: - | N12: 1 | O12: -
A13: Fireworks | B13: =IF('Search Reason'!C29=0,"-",'Search Reason'!C29) -> 6 | C13: 1 | D13: - | E13: - | F13: 2 | G13: - | H13: 2 | I13: - | J13: - | K13: 1 | L13: - | M13: - | N13: 1 | O13: -
A14: Aviation | B14: =IF('Search Reason'!C47=0,"-",'Search Reason'!C47) -> - | C14: - | D14: - | E14: - | F14: - | G14: - | H14: - | I14: - | J14: - | K14: - | L14: - | M14: - | N14: - | O14: -
A15: Wildlife | B15: =IF('Search Reason'!C38= "0","-",'Search Reason'!C38) -> 1 | C15: 1 | D15: - | E15: - | F15: - | G15: - | H15: - | I15: - | J15: - | K15: - | L15: - | M15: - | N15: - | O15: -
A16: Sporting Events | B16: ='Search Reason'!C22 -> 6 | C16: 1 | D16: - | E16: - | F16: - | G16: - | H16: - | I16: - | J16: - | K16: 5 | L16: - | M16: - | N16: - | O16: -
A17: Public Order | B17: =IF('Search Reason'!C35=0,"-",'Search Reason'!C35) -> - | C17: - | D17: - | E17: - | F17: - | G17: - | H17: - | I17: - | J17: - | K17: - | L17: - | M17: - | N17: - | O17: -
A18: Proceed of Crime | B18: =IF('Search Reason'!C64=0,"-",'Search Reason'!C64) -> - | C18: - | D18: - | E18: - | F18: - | G18: - | H18: - | I18: - | J18: - | K18: - | L18: - | M18: - | N18: - | O18: -
A19: Care & Welfare | B19: ='Search Reason'!C68 -> 106 | C19: 66 | D19: - | E19: 2 | F19: 25 | G19: 2 | H19: - | I19: - | J19: - | K19: 3 | L19: 6 | M19: - | N19: 9 | O19: -
A20: Warrant | B20: ='Search Reason'!C52 -> 282 | C20: 255 | D20: - | E20: 5 | F20: 13 | G20: 5 | H20: - | I20: - | J20: - | K20: - | L20: - | M20: 8 | N20: 18 | O20: -
A21: Protection of Life | B21: =IF('Search Reason'!C71=0,"-",'Search Reason'!C71) -> 16 | C21: 4 | D21: 1 | E21: 1 | F21: 5 | G21: - | H21: - | I21: - | J21: - | K21: 3 | L21: - | M21: - | N21: 2 | O21: -
A22: Other | B22: =IF('Search Reason'!C74=0,"-",'Search Reason'!C74) -> 11 | C22: 1 | D22: - | E22: - | F22: - | G22: - | H22: - | I22: - | J22: - | K22: 9 | L22: - | M22: - | N22: 2 | O22: -
A24: Force | B24: =IF(SUM(B8:B22)=0,"-",SUM(B8:B22)) -> 4783 | C24: 3771 | D24: 13 | E24: 420 | F24: 472 | G24: 19 | H24: 3 | I24: 5 | J24: - | K24: 156 | L24: 58 | M24: 47 | N24: 103 | O24: =IF(SUM(O8:O22)=0,"-",SUM(O8:O22)) -> -
A27: 9 - Items found may be higher than total positive searches as multiple items may be found in one search.

Sheet Items Found - Drugs
A1: Table 2.2
A2: Drugs found by Local Authority Area - Police Scotland
A3: ='Number of Searches'!$A$3 -> Period: April to September 2024
B5: Local Authority | C5: Class A | D5: Class B | E5: Class C | F5: NPS | G5: Total
C7: Number of searches where drugs were found
A8: North
B9: Highland | C9: 66 | D9: 141 | E9: 16 | F9: - | G9: =SUM(C9:F9) -> 223
B10: Orkney Islands | C10: 5 | D10: 10 | E10: - | F10: - | G10: 15
B11: Shetland Islands | C11: 14 | D11: 8 | E11: 4 | F11: - | G11: 26
B12: Eilean Siar | C12: 4 | D12: 9 | E12: 2 | F12: - | G12: =IF(SUM(C12:F12) =0,"-",SUM(C12:F12)) -> 15
B13: Aberdeen City | C13: 44 | D13: 82 | E13: 15 | F13: - | G13: 141
B14: Aberdeenshire | C14: 45 | D14: 117 | E14: 10 | F14: 2 | G14: 174
B15: Moray | C15: 13 | D15: 26 | E15: - | F15: - | G15: 39
B16: Perth & Kinross | C16: 2 | D16: 18 | E16: 7 | F16: - | G16: 27
B17: Dundee | C17: 14 | D17: 19 | E17: 18 | F17: - | G17: 51
B18: Angus | C18: 4 | D18: 17 | E18: 4 | F18: - | G18: =SUM(C18:F18) -> 25
A20: East
B21: Fife | C21: 13 | D21: 41 | E21: 17 | F21: - | G21: =SUM(C21:F21) -> 71
B22: East Lothian | C22: 9 | D22: 19 | E22: 4 | F22: - | G22: 32
B23: Edinburgh City | C23: 95 | D23: 106 | E23: 20 | F23: - | G23: 221
B24: Midlothian | C24: 1 | D24: 23 | E24: - | F24: - | G24: 24
B25: Scottish Borders | C25: 1 | D25: 25 | E25: 1 | F25: - | G25: 27
B26: West Lothian | C26: 13 | D26: 25 | E26: 5 | F26: 2 | G26: 45
B27: Clackmannanshire | C27: 1 | D27: 11 | E27: 3 | F27: - | G27: 15
B28: Falkirk | C28: 11 | D28: 38 | E28: 8 | F28: 1 | G28: 58
B29: Stirling | C29: 5 | D29: 22 | E29: 15 | F29: - | G29: 42
A31: West
B32: Argyll & Bute | C32: 23 | D32: 82 | E32: 12 | F32: - | G32: =SUM(C32:F32) -> 117
B33: East Ayrshire | C33: 53 | D33: 68 | E33: 32 | F33: 1 | G33: 154
B34: East Dunbartonshire | C34: 11 | D34: 30 | E34: 3 | F34: - | G34: 44
B35: East Renfrewshire | C35: 4 | D35: 41 | E35: 8 | F35: - | G35: 53
B36: Glasgow City | C36: 218 | D36: 587 | E36: 126 | F36: 4 | G36: 935
B37: Inverclyde | C37: 45 | D37: 35 | E37: 22 | F37: - | G37: 102
B38: North Ayrshire | C38: 40 | D38: 75 | E38: 23 | F38: - | G38: 138
B39: North Lanarkshire | C39: 127 | D39: 313 | E39: 66 | F39: - | G39: 506
B40: Renfrewshire | C40: 35 | D40: 45 | E40: 22 | F40: 1 | G40: 103
B41: South Ayrshire | C41: 28 | D41: 67 | E41: 10 | F41: 2 | G41: 107
B42: South Lanarkshire | C42: 72 | D42: 204 | E42: 44 | F42: - | G42: 320
B43: West Dunbartonshire | C43: 29 | D43: 59 | E43: 19 | F43: - | G43: 107
B44: Dumfries & Galloway | C44: 22 | D44: 63 | E44: 20 | F44: - | G44: 105
A46: Force | C46: =SUM(C9:C44) -> 1067 | D46: =SUM(D9:D44) -> 2426 | E46: =SUM(E9:E44) -> 556 | F46: =SUM(F9:F44) -> 13 | G46: =SUM(G9:G44) -> 4062
A49: 10 - Due to multiple items being found in one search, the totals will not reflect the overall number of searches.

Sheet Items Found - Weapons
A1: Table 2.3
A2: Weapons found by Local Authority Area - Police Scotland
A3: ='Number of Searches'!$A$3 -> Period: April to September 2024
B5: Local Authority | C5: Bladed Instrument | D5: Blunt Instrument | E5: Pointed Article | F5: Pointed Instrument | G5: Other | H5: Total
C7: Number of searches where weapons were found
A8: North
B9: Highland | C9: 7 | D9: 2 | E9: - | F9: - | G9: 1 | H9: =SUM(C9:G9) -> 10
B10: Orkney Islands | C10: 1 | D10: - | E10: - | F10: - | G10: - | H10: =IF(SUM(C10:G10) =0,"-",SUM(C10:G10)) -> 1
B11: Shetland Islands | C11: - | D11: - | E11: - | F11: - | G11: - | H11: =IF(SUM(C11:G11) =0,"-",SUM(C11:G11)) -> -
B12: Eilean Siar | C12: - | D12: - | E12: - | F12: - | G12: - | H12: =IF(SUM(C12:G12)=0,"-",SUM(C12:G12)) -> -
B13: Aberdeen City | C13: 6 | D13: - | E13: 4 | F13: - | G13: - | H13: 10
B14: Aberdeenshire | C14: 4 | D14: 4 | E14: 1 | F14: - | G14: 1 | H14: =IF(SUM(C14:G14)=0,"-",SUM(C14:G14)) -> 10
B15: Moray | C15: - | D15: 1 | E15: - | F15: - | G15: - | H15: =IF(SUM(C15:G15)=0,"-",SUM(C15:G15)) -> 1
B16: Perth & Kinross | C16: 4 | D16: 1 | E16: - | F16: - | G16: 1 | H16: =IF(SUM(C16:G16)=0,"-",SUM(C16:G16)) -> 6
B17: Dundee | C17: 10 | D17: 2 | E17: 5 | F17: - | G17: 2 | H17: 19
B18: Angus | C18: 3 | D18: - | E18: - | F18: - | G18: 1 | H18: 4
A20: East
B21: Fife | C21: 11 | D21: 3 | E21: 2 | F21: - | G21: - | H21: 16
B22: East Lothian | C22: 2 | D22: 2 | E22: - | F22: - | G22: 1 | H22: 5
B23: Edinburgh City | C23: 13 | D23: 12 | E23: 4 | F23: - | G23: 5 | H23: 34
B24: Midlothian | C24: 1 | D24: - | E24: - | F24: - | G24: - | H24: 1
B25: Scottish Borders | C25: - | D25: - | E25: - | F25: - | G25: - | H25: =SUM(C25:G25) -> 0
B26: West Lothian | C26: 4 | D26: 1 | E26: 5 | F26: - | G26: - | H26: 10
B27: Clackmannanshire | C27: 1 | D27: - | E27: - | F27: - | G27: 1 | H27: =IF(SUM(C27:G27)=0,"-",SUM(C27:G27)) -> 2
B28: Falkirk | C28: 9 | D28: 2 | E28: 4 | F28: - | G28: 1 | H28: =IF(SUM(C28:G28)=0,"-",SUM(C28:G28)) -> 16
B29: Stirling | C29: 3 | D29: 2 | E29: 2 | F29: - | G29: - | H29: =IF(SUM(C29:G29)=0,"-",SUM(C29:G29)) -> 7
A31: West
B32: Argyll & Bute | C32: 1 | D32: - | E32: 1 | F32: - | G32: - | H32: =SUM(C32:G32) -> 2
B33: East Ayrshire | C33: 11 | D33: 5 | E33: 3 | F33: - | G33: 2 | H33: 21
B34: East Dunbartonshire | C34: 1 | D34: - | E34: - | F34: - | G34: - | H34: =IF(SUM(C34:G34)=0,"-",SUM(C34:G34)) -> 1
B35: East Renfrewshire | C35: 4 | D35: 1 | E35: 6 | F35: - | G35: 1 | H35: =IF(SUM(C35:G35)=0,"-",SUM(C35:G35)) -> 12
B36: Glasgow City | C36: 67 | D36: 20 | E36: 29 | F36: - | G36: 7 | H36: 123
B37: Inverclyde | C37: 9 | D37: 1 | E37: 5 | F37: - | G37: 1 | H37: =IF(SUM(C37:G37)=0,"-",SUM(C37:G37)) -> 16
B38: North Ayrshire | C38: 15 | D38: 1 | E38: 4 | F38: - | G38: 1 | H38: 21
B39: North Lanarkshire | C39: 30 | D39: 13 | E39: 16 | F39: - | G39: 8 | H39: 67
B40: Renfrewshire | C40: 7 | D40: - | E40: 2 | F40: - | G40: 1 | H40: 10
B41: South Ayrshire | C41: 5 | D41: 1 | E41: 2 | F41: - | G41: - | H41: 8
B42: South Lanarkshire | C42: 22 | D42: 19 | E42: 12 | F42: - | G42: 6 | H42: 59
B43: West Dunbartonshire | C43: 10 | D43: 7 | E43: 4 | F43: - | G43: 3 | H43: 24
B44: Dumfries & Galloway | C44: 1 | D44: 1 | E44: - | F44: - | G44: - | H44: 2
A46: Force | C46: =SUM(C9:C44) -> 262 | D46: =SUM(D8:D44) -> 101 | E46: =SUM(E9:E44) -> 111 | F46: =IF(SUM(F9:F44)=0,"-",SUM(F9:F44)) -> - | G46: =IF(SUM(G9:G44)=0,"-",SUM(G9:G44)) -> 44 | H46: =SUM(H8:H44) -> 518
A49: 11 - Due to multiple items being found in one search, the totals will not reflect the overall number of searches.

Sheet Items Found - Other
A1: Table 2.4
A2: Other Items found by Local Authority Area - Police Scotland
A3: ='Number of Searches'!$A$3 -> Period: April to September 2024
B5: Local Authority | C5: Firearms | D5: Fireworks | E5: Stolen Property | F5: Alcohol | G5: Other | H5: Total
C7: Number of searches where other items were found
A8: North
B9: Highland | C9: 1 | D9: - | E9: 10 | F9: 3 | G9: 4 | H9: =SUM(C9:G9) -> 18
B10: Orkney Islands | C10: - | D10: - | E10: - | F10: - | G10: - | H10: =IF(SUM(C10:G10) =0,"-",SUM(C10:G10)) -> -
B11: Shetland Islands | C11: - | D11: - | E11: 1 | F11: - | G11: 1 | H11: =IF(SUM(C11:G11)=0,"-",SUM(C11:G11)) -> 2
B12: Eilean Siar | C12: - | D12: - | E12: - | F12: - | G12: - | H12: =IF(SUM(C12:G12)=0,"-",SUM(C12:G12)) -> -
B13: Aberdeen City | C13: 1 | D13: - | E13: 8 | F13: 3 | G13: 2 | H13: =IF(SUM(C13:G13)=0,"-",SUM(C13:G13)) -> 14
B14: Aberdeenshire | C14: - | D14: - | E14: 2 | F14: 3 | G14: 3 | H14: =IF(SUM(C14:G14)=0,"-",SUM(C14:G14)) -> 8
B15: Moray | C15: - | D15: - | E15: 1 | F15: - | G15: - | H15: =IF(SUM(C15:G15)=0,"-",SUM(C15:G15)) -> 1
B16: Perth & Kinross | C16: - | D16: - | E16: 4 | F16: - | G16: - | H16: =SUM(C16:G16) -> 4
B17: Dundee | C17: - | D17: - | E17: 25 | F17: 1 | G17: 4 | H17: =SUM(C17:G17) -> 30
B18: Angus | C18: 1 | D18: - | E18: 4 | F18: 3 | G18: 7 | H18: =IF(SUM(C18:G18)=0,"-",SUM(C18:G18)) -> 15
A20: East
B21: Fife | C21: 1 | D21: - | E21: 3 | F21: - | G21: 4 | H21: =SUM(C21:G21) -> 8
B22: East Lothian | C22: - | D22: 1 | E22: 1 | F22: 2 | G22: 3 | H22: =SUM(C22:G22) -> 7
B23: Edinburgh City | C23: - | D23: - | E23: 21 | F23: 2 | G23: 9 | H23: =SUM(C23:G23) -> 32
B24: Midlothian | C24: - | D24: - | E24: 5 | F24: - | G24: 2 | H24: =SUM(C24:G24) -> 7
B25: Scottish Borders | C25: - | D25: - | E25: 1 | F25: - | G25: 1 | H25: =IF(SUM(C25:G25)=0,"-",SUM(C25:G25)) -> 2
B26: West Lothian | C26: - | D26: - | E26: 1 | F26: - | G26: 1 | H26: =IF(SUM(C26:G26)=0,"-",SUM(C26:G26)) -> 2
B27: Clackmannanshire | C27: - | D27: - | E27: - | F27: - | G27: - | H27: =IF(SUM(C27:G27)=0,"-",SUM(C27:G27)) -> -
B28: Falkirk | C28: - | D28: 2 | E28: 4 | F28: 3 | G28: 1 | H28: =SUM(C28:G28) -> 10
B29: Stirling | C29: 1 | D29: - | E29: 3 | F29: - | G29: 2 | H29: =SUM(C29:G29) -> 6
A31: West
B32: Argyll & Bute | C32: 2 | D32: - | E32: 3 | F32: 4 | G32: 2 | H32: =SUM(C32:G32) -> 11
B33: East Ayrshire | C33: 1 | D33: - | E33: 77 | F33: 16 | G33: 2 | H33: 96
B34: East Dunbartonshire | C34: - | D34: - | E34: 1 | F34: 1 | G34: - | H34: 2
B35: East Renfrewshire | C35: - | D35: - | E35: 4 | F35: - | G35: 3 | H35: 7
B36: Glasgow City | C36: 5 | D36: - | E36: 62 | F36: 25 | G36: 25 | H36: 117
B37: Inverclyde | C37: 2 | D37: - | E37: 1 | F37: 1 | G37: 2 | H37: 6
B38: North Ayrshire | C38: - | D38: - | E38: 12 | F38: 5 | G38: 2 | H38: 19
B39: North Lanarkshire | C39: 1 | D39: - | E39: 53 | F39: 33 | G39: 12 | H39: 99
B40: Renfrewshire | C40: - | D40: - | E40: 15 | F40: 4 | G40: 4 | H40: 23
B41: South Ayrshire | C41: - | D41: - | E41: 24 | F41: 11 | G41: 1 | H41: 36
B42: South Lanarkshire | C42: 1 | D42: - | E42: 50 | F42: 33 | G42: 4 | H42: 88
B43: West Dunbartonshire | C43: - | D43: - | E43: 14 | F43: - | G43: 2 | H43: 16
B44: Dumfries & Galloway | C44: 2 | D44: - | E44: 10 | F44: 3 | G44: - | H44: 15
A46: Force | C46: =SUM(C9:C44) -> 19 | D46: =IF(SUM(D9:D44)=0,"-",SUM(D9:D44)) -> 3 | E46: =SUM(E9:E44) -> 420 | F46: =SUM(F9:F44) -> 156 | G46: =SUM(G9:G44) -> 103 | H46: =SUM(H9:H44) -> 701
A49: 12 - Due to multiple items being found in one search, the totals will not reflect the overall number of searches.

Sheet Searches by Ethnicity
A1: Table 3.1
A2: Searches by Ethnicity/National Origin - Police Scotland
A3: ='Number of Searches'!$A$3 -> Period: April to September 2024
A5: Ethnicity/National Origin | B5: Number of Searches | C5: Positive Searches | D5: Positive Rate (%)
B7: Number
A8: White Scottish | B8: 15736 | C8: 3935 | D8: =IFERROR(C8/B8*100,"-") -> 25.00635486
A9: White British Other | B9: 825 | C9: 233 | D9: =IFERROR(C9/B9*100,"-") -> 28.24242424
A10: White Irish | B10: 50 | C10: 7 | D10: 14
A11: White Gypsy/Traveller | B11: 22 | C11: 8 | D11: 36.36363636
A12: White Polish | B12: 193 | C12: 62 | D12: 32.12435233
A13: White Other | B13: 314 | C13: 102 | D13: 32.48407643
A14: Any Mixed Ethnic Group | B14: 205 | C14: 53 | D14: 25.85365854
A15: Pakistani | B15: 284 | C15: 73 | D15: 25.70422535
A16: Indian | B16: 46 | C16: 12 | D16: 26.08695652
A17: Bangladeshi | B17: 6 | C17: 1 | D17: 16.66666667
A18: Chinese | B18: 41 | C18: 6 | D18: 14.63414634
A19: Asian Other | B19: 191 | C19: 59 | D19: 30.89005236
A20: African, African Scottish, African British | B20: 276 | C20: 64 | D20: 23.1884058
A21: African Other | B21: 119 | C21: 21 | D21: 17.64705882
A22: Caribbean, Caribbean Scottish or Caribbean British | B22: 26 | C22: 5 | D22: 19.23076923
A23: Black, Black Scottish or Black British | B23: 190 | C23: 37 | D23: 19.47368421
A24: Black Other | B24: - | C24: - | D24: -
A25: Arab, Arab Scottish, Arab British | B25: 99 | C25: 23 | D25: 23.23232323
A26: Other Ethnic Group | B26: 157 | C26: 32 | D26: 20.38216561
A27: Not Provided/Unknown | B27: 218 | C27: 50 | D27: 22.93577982
B29: Percentage
A30: White Scottish | B30: =IFERROR(B8/'Number of Searches'!$C$45*100,"-") -> 82.82977155 | C30: =IFERROR(C8/'Number of Searches'!$D$45*100,"-") -> 82.2705415
A31: White British Other | B31: =IFERROR(B9/'Number of Searches'!$C$45*100,"-") -> 4.342562375 | C31: =IFERROR(C9/'Number of Searches'!$D$45*100,"-") -> 4.871419611
A32: White Irish | B32: =IFERROR(B10/'Number of Searches'!$C$45*100,"-") -> 0.2631855985 | C32: =IFERROR(C10/'Number of Searches'!$D$45*100,"-") -> 0.1463516621
A33: White Gypsy/Traveller | B33: =IFERROR(B11/'Number of Searches'!$C$45*100,"-") -> 0.1158016633 | C33: =IFERROR(C11/'Number of Searches'!$D$45*100,"-") -> 0.1672590424
A34: White Polish | B34: =IFERROR(B12/'Number of Searches'!$C$45*100,"-") -> 1.01589641 | C34: =IFERROR(C12/'Number of Searches'!$D$45*100,"-") -> 1.296257579
A35: White Other | B35: =IFERROR(B13/'Number of Searches'!$C$45*100,"-") -> 1.652805558 | C35: =IFERROR(C13/'Number of Searches'!$D$45*100,"-") -> 2.132552791
A36: Any Mixed Ethnic Group | B36: =IFERROR(B14/'Number of Searches'!$C$45*100,"-") -> 1.079060954 | C36: =IFERROR(C14/'Number of Searches'!$D$45*100,"-") -> 1.108091156
A37: Pakistani | B37: =IFERROR(B15/'Number of Searches'!$C$45*100,"-") -> 1.494894199 | C37: =IFERROR(C15/'Number of Searches'!$D$45*100,"-") -> 1.526238762
A38: Indian | B38: =IFERROR(B16/'Number of Searches'!$C$45*100,"-") -> 0.2421307506 | C38: =IFERROR(C16/'Number of Searches'!$D$45*100,"-") -> 0.2508885637
A39: Bangladeshi | B39: =IFERROR(B17/'Number of Searches'!$C$45*100,"-") -> 0.03158227182 | C39: =IFERROR(C17/'Number of Searches'!$D$45*100,"-") -> 0.02090738031
A40: Chinese | B40: =IFERROR(B18/'Number of Searches'!$C$45*100,"-") -> 0.2158121908 | C40: =IFERROR(C18/'Number of Searches'!$D$45*100,"-") -> 0.1254442818
A41: Asian Other | B41: =IFERROR(B19/'Number of Searches'!$C$45*100,"-") -> 1.005368986 | C41: =IFERROR(C19/'Number of Searches'!$D$45*100,"-") -> 1.233535438
A42: African, African Scottish, African British | B42: =IFERROR(B20/'Number of Searches'!$C$45*100,"-") -> 1.452784504 | C42: =IFERROR(C20/'Number of Searches'!$D$45*100,"-") -> 1.33807234
A43: African Other | B43: =IFERROR(B21/'Number of Searches'!$C$45*100,"-") -> 0.6263817244 | C43: =IFERROR(C21/'Number of Searches'!$D$45*100,"-") -> 0.4390549864
A44: Caribbean, Caribbean Scottish or Caribbean British | B44: =IFERROR(B22/'Number of Searches'!$C$45*100,"-") -> 0.1368565112 | C44: =IFERROR(C22/'Number of Searches'!$D$45*100,"-") -> 0.1045369015
A45: Black, Black Scottish or Black British | B45: =IFERROR(B23/'Number of Searches'!$C$45*100,"-") -> 1.000105274 | C45: =IFERROR(C23/'Number of Searches'!$D$45*100,"-") -> 0.7735730713
A46: Black Other | B46: =IFERROR(B24/'Number of Searches'!$C$45*100,"-") -> - | C46: =IFERROR(C24/'Number of Searches'!$D$45*100,"-") -> -
A47: Arab, Arab Scottish, Arab British | B47: =IFERROR(B25/'Number of Searches'!$C$45*100,"-") -> 0.521107485 | C47: =IFERROR(C25/'Number of Searches'!$D$45*100,"-") -> 0.480869747
A48: Other Ethnic Group | B48: =IFERROR(B26/'Number of Searches'!$C$45*100,"-") -> 0.8264027792 | C48: =IFERROR(C26/'Number of Searches'!$D$45*100,"-") -> 0.6690361698
A49: Not Provided/Unknown | B49: =IFERROR(B27/'Number of Searches'!$C$45*100,"-") -> 1.147489209 | C49: =IFERROR(C27/'Number of Searches'!$D$45*100,"-") -> 1.045369015
A52: 13 - Any anomilies in percentage changes are due to rounding up to the nearest decimal place.

Sheet Searches By Age and Gender
A1: Table 3.2
A2: Searches by Age and Gender - Police Scotland
A3: ='Number of Searches'!$A$3 -> Period: April to September 2024
A5: Demographic | B5: Number of Searches | C5: Positive Searches | D5: Positive Rate (%)
A7: Gender | B7: Number
A8: Male | B8: 15921 | C8: 4104 | D8: =IFERROR(C8/B8*100,"-") -> 25.7772753
A9: Female | B9: 3077 | C9: 679 | D9: =IFERROR(C9/B9*100,"-") -> 22.06694833
A10: Not Provided | B10: - | C10: - | D10: -
A12: Age Group
A13: 1 - 11 Years | B13: 30 | C13: 1 | D13: =IFERROR(C13/B13*100,"-") -> 3.333333333
A14: 12 - 15 Years | B14: 1578 | C14: 238 | D14: =IFERROR(C14/B14*100,"-") -> 15.08238276
A15: 16 - 17 Years | B15: 1445 | C15: 327 | D15: 22.62975779
A16: 18 - 19 Years | B16: 1227 | C16: 325 | D16: 26.48736756
A17: 20 - 24 Years | B17: 2507 | C17: 783 | D17: 31.23254886
A18: 25 - 29 Years | B18: 2087 | C18: 645 | D18: 30.90560613
A19: 30 - 39 Years | B19: 4384 | C19: 1194 | D19: 27.23540146
A20: 40 - 49 Years | B20: 3685 | C20: 902 | D20: 24.47761194
A21: 50 - 59 Years | B21: 1492 | C21: 301 | D21: 20.17426273
A22: 60 - 69 Years | B22: 322 | C22: 58 | D22: 18.01242236
A23: 70 Years and Over | B23: 67 | C23: 5 | D23: 7.462686567
A24: Age Unknown | B24: 174 | C24: 4 | D24: 2.298850575
A27: Gender | B27: Percentage
A28: Male | B28: =B8/'Number of Searches'!$C$45*100 -> 83.80355827 | C28: =IFERROR(C8/'Number of Searches'!$D$45*100,"-") -> 85.80388877
A29: Female | B29: =B9/'Number of Searches'!$C$45*100 -> 16.19644173 | C29: =IFERROR(C9/'Number of Searches'!$D$45*100,"-") -> 14.19611123
A30: Not Provided | B30: =IFERROR(B10/'Number of Searches'!$C$45*100,"-") -> - | C30: =IFERROR(C10/'Number of Searches'!$D$45*100,"-") -> -
A32: Age Group
A33: 1 - 11 Years | B33: =IFERROR(B13/'Number of Searches'!$C$45*100,"-") -> 0.1579113591 | C33: =IFERROR(C13/'Number of Searches'!$D$45*100,"-") -> 0.02090738031
A34: 12 - 15 Years | B34: =IFERROR(B14/'Number of Searches'!$C$45*100,"-") -> 8.306137488 | C34: =IFERROR(C14/'Number of Searches'!$D$45*100,"-") -> 4.975956513
A35: 16 - 17 Years | B35: =IFERROR(B15/'Number of Searches'!$C$45*100,"-") -> 7.606063796 | C35: =IFERROR(C15/'Number of Searches'!$D$45*100,"-") -> 6.83671336
A36: 18 - 19 Years | B36: =IFERROR(B16/'Number of Searches'!$C$45*100,"-") -> 6.458574587 | C36: =IFERROR(C16/'Number of Searches'!$D$45*100,"-") -> 6.794898599
A37: 20 - 24 Years | B37: =IFERROR(B17/'Number of Searches'!$C$45*100,"-") -> 13.19612591 | C37: =IFERROR(C17/'Number of Searches'!$D$45*100,"-") -> 16.37047878
A38: 25 - 29 Years | B38: =IFERROR(B18/'Number of Searches'!$C$45*100,"-") -> 10.98536688 | C38: =IFERROR(C18/'Number of Searches'!$D$45*100,"-") -> 13.4852603
A39: 30 - 39 Years | B39: =IFERROR(B19/'Number of Searches'!$C$45*100,"-") -> 23.07611328 | C39: =IFERROR(C19/'Number of Searches'!$D$45*100,"-") -> 24.96341208
A40: 40 - 49 Years | B40: =IFERROR(B20/'Number of Searches'!$C$45*100,"-") -> 19.39677861 | C40: =IFERROR(C20/'Number of Searches'!$D$45*100,"-") -> 18.85845704
A41: 50 - 59 Years | B41: =IFERROR(B21/'Number of Searches'!$C$45*100,"-") -> 7.853458259 | C41: =IFERROR(C21/'Number of Searches'!$D$45*100,"-") -> 6.293121472
A42: 60 - 69 Years | B42: =IFERROR(B22/'Number of Searches'!$C$45*100,"-") -> 1.694915254 | C42: =IFERROR(C22/'Number of Searches'!$D$45*100,"-") -> 1.212628058
A43: 70 Years and Over | B43: =IFERROR(B23/'Number of Searches'!$C$45*100,"-") -> 0.352668702 | C43: =IFERROR(C23/'Number of Searches'!$D$45*100,"-") -> 0.1045369015
A44: Age Unknown | B44: =IFERROR(B24/'Number of Searches'!$C$45*100,"-") -> 0.9158858827 | C44: =IFERROR(C24/'Number of Searches'!$D$45*100,"-") -> 0.08362952122
A47: 14 - All 30 searches of persons in the age group ‘1-11’ have been reviewed by the NSSU and met the expected
A48: criteria.
A49: 15 - Searches recorded in the age group 'Age Unknown' refer to records where the nominal details were withheld
A50: or 'Age Unknown' boxes have been ticked. Officers are required to make an estimate whether the persons
A51: searched was under the age of 18. Of the 174 searches 136 were for persons estimated by reporting officers to be
A52: 18 years of age or over and 38 was for persons estimated to be under the age of 18.

Sheet S60 Auths
A1: Table 4.1
A2: Use of powers under Section 60 Criminal Justice and Public Order Act 1994 - Police Scotland
A3: ='Number of Searches'!$A$3 -> Period: April to September 2024
A5: A total of 0 stop searches have been carried out under Section 60 Criminal Justice and Public Order Act 1994 authorisations recorded as detailed in the table below:
A7: Authorisation Date | B7: Local Authority Area | C7: Authorising Officer Rank | D7: Authorisation Type | E7: Number of Searches
A17: The "pre-planned" authorisation relates to n/a
